bitfinex/quotes_SOLUSD_20250929
["timestamp","ask_amount","ask_price","bid_price","bid_amount"]
[1759170223473,0.68,209.69,209.67,0.1]
[1759170225296,4.76917207,209.68,209.67,0.1]
[1759170225465,5.44917207,209.68,209.67,0.1]
[1759170226283,19.18692765,209.68,209.67,0.1]
[1759170227887,5.59133364,209.68,209.67,0.1]
[1759170228393,5.44917207,209.68,209.67,0.1]
[1759170229021,0.68,209.68,209.67,0.1]
[1759170229160,26.0,209.68,209.67,0.1]
[1759170230389,26.68,209.68,209.67,0.1]
[1759170230782,26.0,209.68,209.67,0.1]
[1759170230985,26.68,209.68,209.67,0.1]
[1759170231288,31.44917207,209.68,209.67,0.1]
[1759170231485,31.59133364,209.68,209.67,0.1]
[1759170234179,65.27133364,209.68,209.67,0.1]
[1759170243691,26.0,209.68,209.67,0.1]
[1759170244409,30.76917207,209.68,209.67,0.1]
[1759170244589,31.47917207,209.68,209.67,0.1]
[1759170246902,65.30133364,209.68,209.67,0.1]
[1759170247582,78.89692765,209.68,209.67,0.1]
[1759170247900,82.10236052,209.68,209.67,0.1]
[1759170254509,65.13917207,209.68,209.67,0.1]
[1759170255425,68.3470269,209.68,209.67,0.1]
[1759170255599,64.44917207,209.68,209.67,0.1]
[1759170257223,67.65872505,209.68,209.67,0.1]
[1759170258216,64.44917207,209.68,209.67,0.1]
[1759170258519,4.76917207,209.68,209.67,0.1]
[1759170258922,30.76917207,209.68,209.67,0.1]
[1759170259310,26.0,209.68,209.67,0.1]
[1759170260320,30.76917207,209.68,209.67,0.1]
[1759170260529,7.95542789,209.72,209.67,0.2]
[1759170260733,3.21173137,209.74,209.68,0.1]
[1759170260915,33.68,209.76,209.68,0.1]
[1759170261109,36.89173137,209.76,209.68,0.1]
[1759170261311,41.65910253,209.76,209.68,0.1]
[1759170261708,7.97910253,209.76,209.68,0.1]
[1759170262308,7.97910253,209.76,209.69,4.76894463]
[1759170262522,7.97910253,209.76,209.7,0.1]
[1759170262930,29.21173137,209.77,209.7,0.1]
[1759170263108,3.21173137,209.78,209.7,0.1]
[1759170264641,7.97865715,209.78,209.71,4.76848981]
[1759170264824,7.97865715,209.78,209.72,0.1]
[1759170265025,3.21173137,209.78,209.72,0.1]
[1759170265223,3.88173137,209.81,209.72,0.1]
[1759170265431,5.43653031,209.8,209.72,0.1]
[1759170266325,5.43653031,209.8,209.73,4.76803509]
[1759170266527,0.67,209.79,209.73,4.76803509]
[1759170266741,131.6,209.78,209.73,4.86803509]
[1759170267040,131.6,209.78,209.74,0.1]
[1759170267543,132.27,209.78,209.73,4.76803509]
[1759170267927,132.27,209.78,209.73,0.1]
[1759170268135,137.03693764,209.78,209.72,4.76825339]
[1759170268943,132.27,209.78,209.72,4.76825339]
[1759170269828,132.27,209.78,209.72,4.86825339]
[1759170270234,131.6,209.78,209.73,0.1]
[1759170270427,132.27,209.78,209.73,0.1]
[1759170270838,131.6,209.78,209.72,4.76825339]
[1759170271041,132.27,209.78,209.72,4.76825339]
[1759170272021,135.47378931,209.77,209.67,0.1]
[1759170272226,2.04082826,209.76,209.67,0.1]
[1759170272516,26.0,209.74,209.67,0.1]
[1759170272841,62.37082826,209.73,209.67,0.1]
[1759170274082,16.68891855,209.72,209.67,0.1]
[1759170274441,0.67,209.71,209.67,0.1]
[1759170274944,0.67,209.7,209.67,0.1]
[1759170276022,26.0,209.73,209.67,4.96929935]
[1759170276241,0.67,209.73,209.67,4.86929935]
[1759170276924,0.67,209.72,209.67,4.86929935]
[1759170277121,0.67,209.74,209.67,4.96929935]
[1759170277426,0.67,209.73,209.67,4.86929935]
[1759170279559,136.36780778,209.74,209.67,0.1]
[1759170279848,0.67,209.72,209.67,4.86937053]
[1759170280021,0.67,209.71,209.67,0.1]
[1759170280332,0.67,209.73,209.67,0.1]
[1759170280735,0.67,209.73,209.67,4.86931628]
[1759170280926,0.67,209.73,209.67,4.96931628]
[1759170281637,0.67,209.73,209.67,16.79281511]
[1759170281943,0.67,209.73,209.67,4.86931628]
[1759170283540,0.67,209.72,209.67,4.86931628]
[1759170283844,136.36780828,209.74,209.67,4.86931628]
[1759170284051,131.6,209.74,209.67,4.86931628]
[1759170284244,0.67,209.73,209.67,4.86931628]
[1759170285248,0.67,209.73,209.67,16.89281511]
[1759170286166,131.6,209.74,209.67,16.89281511]
[1759170286652,131.6,209.74,209.67,4.86926409]
[1759170286853,0.67,209.73,209.67,4.86926409]
[1759170287028,0.67,209.72,209.67,4.86926409]
[1759170287234,0.67,209.71,209.67,4.86926409]
[1759170287852,131.6,209.74,209.67,4.86926409]
[1759170288047,0.67,209.73,209.67,4.86926409]
[1759170288255,0.67,209.72,209.67,4.86926409]
[1759170289032,131.6,209.74,209.67,4.86926409]
[1759170289033,132.27,209.74,209.67,4.96926409]
[1759170289233,137.03780944,209.74,209.67,4.96926409]
[1759170289437,0.67,209.73,209.67,4.86926409]
[1759170289637,0.67,209.72,209.67,4.86926409]
[1759170291269,131.6,209.74,209.68,0.1]
[1759170292245,131.6,209.74,209.69,4.76894463]
[1759170292652,132.28,209.74,209.69,4.76894463]
[1759170293064,0.68,209.73,209.69,4.76894463]
[1759170293452,131.6,209.74,209.69,4.76894463]
[1759170293651,132.28,209.74,209.69,4.76894463]
[1759170293855,0.68,209.73,209.69,4.76894463]
[1759170294243,131.6,209.74,209.69,4.76894463]
[1759170294244,131.6,209.74,209.69,16.69130621]
[1759170294771,131.6,209.74,209.69,16.79130621]
[1759170295146,132.28,209.74,209.69,16.79130621]
[1759170295346,132.28,209.74,209.69,11.92236158]
[1759170296058,132.28,209.74,209.69,12.02236158]
[1759170296261,131.6,209.74,209.69,12.02236158]
[1759170296587,131.6,209.74,209.7,0.1]
[1759170296772,131.6,209.74,209.69,11.92236158]
[1759170297069,131.6,209.74,209.7,33.64]
[1759170297458,131.6,209.74,209.71,16.68971435]
[1759170299090,0.68,209.76,209.71,16.68971435]
[1759170299247,0.68,209.78,209.71,16.78971435]
[1759170299561,0.68,209.78,209.74,16.68732716]
[1759170300144,33.64,209.82,209.74,16.68732716]
[1759170300367,0.68,209.81,209.74,16.68732716]
[1759170300569,0.68,209.8,209.74,16.68732716]
[1759170300774,0.68,209.79,209.74,16.68732716]
[1759170300960,26.0,209.82,209.74,16.68732716]
[1759170301155,0.68,209.78,209.74,4.76780776]
[1759170301473,26.0,209.82,209.72,13.59559401]
[1759170301474,0.68,209.77,209.73,16.68809334]
[1759170301657,0.68,209.77,209.73,50.32809334]
[1759170302761,0.68,209.77,209.73,64.56481368]
[1759170303170,4.76623871,209.81,209.73,64.56481368]
[1759170303477,0.68,209.76,209.73,64.56481368]
[1759170304574,0.68,209.78,209.73,64.56481368]
[1759170304774,4.76623871,209.81,209.73,64.56481368]
[1759170305075,0.68,209.77,209.73,64.56481368]
[1759170305772,131.6,209.81,209.73,64.56481368]
[1759170305974,0.68,209.8,209.73,64.56481368]
[1759170306175,0.68,209.79,209.73,64.56481368]
[1759170306377,0.68,209.78,209.74,33.64]
[1759170306555,0.68,209.77,209.73,19.00475543]
[1759170306757,0.68,209.76,209.73,52.64475543]
[1759170306952,0.68,209.75,209.7,4.76871721]
[1759170307259,0.68,209.74,209.7,38.40871721]
[1759170307469,48.767356,209.8,209.7,50.33051024]
[1759170307470,0.68,209.76,209.7,50.33051024]
[1759170307887,0.68,209.78,209.71,0.1]
[1759170308566,0.68,209.78,209.71,13.69559401]
[1759170309157,0.68,209.78,209.73,16.68812282]
[1759170310469,0.68,209.78,209.73,30.96782843]
[1759170312182,136.36626742,209.81,209.73,30.96782843]
[1759170312396,0.68,209.77,209.73,30.96782843]
[1759170312554,0.68,209.76,209.73,64.60782843]
[1759170312760,0.68,209.75,209.73,52.6877407]
[1759170313080,0.68,209.77,209.73,52.6877407]
[1759170313289,0.68,209.76,209.73,52.6877407]
[1759170315371,0.7,209.75,209.7,4.76871721]
[1759170315568,4.76706291,209.78,209.7,4.76871721]
[1759170315569,0.7,209.74,209.71,33.62]
[1759170315779,0.7,209.73,209.71,33.62]
[1759170315987,0.7,209.72,209.7,4.76871721]
[1759170316177,0.7,209.71,209.69,33.62]
[1759170316378,0.7,209.7,209.69,38.38882194]
[1759170316697,0.7,209.7,209.67,4.86920765]
[1759170316988,0.7,209.69,209.67,4.86920765]
[1759170317291,0.7,209.68,209.67,4.86920765]
[1759170318671,0.7,209.68,209.67,0.1]
[1759170323786,0.7,209.68,209.67,4.86939953]
[1759170323982,0.7,209.68,209.67,0.1]
[1759170325994,0.71,209.72,209.67,4.86939953]
[1759170326169,0.71,209.71,209.67,4.86939953]
[1759170326363,0.71,209.7,209.67,0.1]
[1759170327667,0.71,209.69,209.67,0.1]
[1759170327874,0.71,209.69,209.67,4.86935835]
[1759170328075,0.71,209.71,209.67,4.86935835]
[1759170328273,0.71,209.7,209.67,4.86935835]
[1759170329503,0.71,209.69,209.67,4.86935835]
[1759170329803,0.71,209.69,209.67,0.1]
[1759170330990,0.71,209.68,209.67,0.1]
[1759170333800,33.62,209.69,209.67,0.1]
[1759170334003,34.33,209.69,209.67,0.1]
[1759170334302,0.71,209.68,209.67,0.1]
[1759170337705,132.31,209.72,209.67,4.86939953]
[1759170337908,0.71,209.71,209.67,4.86939953]
[1759170338206,0.71,209.7,209.67,4.86939953]
[1759170338920,132.31,209.72,209.67,4.86939953]
[1759170339085,0.71,209.71,209.67,4.86939953]
[1759170339295,33.62,209.74,209.67,4.86939953]
[1759170339296,0.71,209.73,209.67,16.89289836]
[1759170339816,43.82664054,209.85,209.68,47.45775558]
[1759170339817,13.59559401,209.84,209.68,47.45775558]
[1759170340113,3.18988678,209.82,209.69,0.1]
[1759170340320,0.71,209.81,209.69,0.1]
[1759170340498,26.0,209.79,209.69,0.1]
[1759170340689,0.71,209.78,209.69,0.1]
[1759170342093,5.47694484,209.78,209.7,4.76871721]
[1759170342298,0.71,209.77,209.7,4.76871721]
[1759170342502,0.71,209.76,209.7,4.76871721]
[1759170342708,0.71,209.75,209.7,4.76871721]
[1759170342901,0.71,209.74,209.7,4.76871721]
[1759170343210,0.71,209.73,209.7,4.76871721]
[1759170343417,0.71,209.72,209.7,4.76871721]
[1759170344123,0.71,209.72,209.69,4.76894463]
[1759170344313,4.76774174,209.75,209.69,4.76894463]
[1759170344488,0.71,209.71,209.68,4.76913605]
[1759170344687,0.71,209.7,209.68,4.76913605]
[1759170345010,0.71,209.69,209.67,0.1]
[1759170345389,131.6,209.74,209.67,0.1]
[1759170345390,0.71,209.68,209.67,0.1]
[1759170346296,0.71,209.68,209.67,4.86939953]
[1759170347716,0.71,209.68,209.67,0.1]
[1759170349422,0.71,209.71,209.67,4.86939953]
[1759170349590,33.62,209.73,209.67,4.86939953]
[1759170349790,33.62,209.73,209.67,16.89289836]
[1759170350209,34.33,209.73,209.67,16.79289836]
[1759170351412,0.68,209.72,209.67,16.79289836]
[1759170352027,131.6,209.74,209.68,13.69559401]
[1759170352899,131.6,209.74,209.69,16.69130621]
[1759170353307,0.68,209.73,209.69,16.69130621]
[1759170353829,0.68,209.72,209.69,16.69130621]
[1759170355004,0.68,209.71,209.69,16.69130621]
[1759170355915,131.6,209.74,209.69,16.69130621]
[1759170355916,0.68,209.73,209.69,16.69130621]
[1759170356512,131.6,209.74,209.69,16.69130621]
[1759170356513,0.68,209.72,209.69,16.69130621]
[1759170360543,131.6,209.74,209.69,16.69130621]
[1759170360724,0.68,209.73,209.69,16.69130621]
[1759170362343,131.6,209.74,209.69,16.69130621]
[1759170362539,4.76602027,209.82,209.71,0.14216157]
[1759170362742,3.18988678,209.84,209.73,16.68812282]
[1759170362743,0.68,209.8,209.73,16.68812282]
[1759170362907,0.68,209.79,209.73,38.36803509]
[1759170363107,0.68,209.78,209.73,38.36803509]
[1759170363330,0.68,209.77,209.73,38.36803509]
[1759170363538,0.68,209.76,209.73,38.36803509]
[1759170364113,4.76598989,209.82,209.73,38.36803509]
[1759170364114,0.68,209.75,209.73,38.36803509]
[1759170364310,0.68,209.74,209.68,4.76917207]
[1759170364632,0.68,209.73,209.67,4.86938064]
[1759170364832,26.68,209.72,209.67,0.1]
[1759170365139,33.6,209.71,209.67,0.1]
[1759170365539,0.68,209.7,209.67,0.1]
[1759170366614,4.76894463,209.69,209.67,0.1]
[1759170366839,0.68,209.68,209.67,0.1]
[1759170367218,0.68,209.68,209.67,4.86939953]
[1759170367937,0.68,209.68,209.67,0.1]
[1759170368636,5.44917207,209.68,209.67,0.1]
[1759170370740,0.68,209.68,209.67,0.1]
[1759170371242,0.68,209.68,209.67,4.86939953]
[1759170371923,131.6,209.7,209.67,4.86939953]
[1759170373033,132.28,209.7,209.67,4.86939953]
[1759170375742,131.6,209.7,209.67,4.86939953]
[1759170375948,0.67,209.69,209.67,4.86939953]
[1759170376646,131.6,209.7,209.67,4.86939953]
[1759170376940,131.6,209.7,209.67,16.79289836]
[1759170377345,132.27,209.7,209.67,16.79289836]
[1759170377736,131.6,209.7,209.67,16.89289836]
[1759170378547,131.6,209.7,209.68,0.1]
[1759170378752,0.67,209.75,209.69,0.1]
[1759170379326,0.67,209.75,209.68,47.19559401]
[1759170379649,0.67,209.77,209.69,0.1]
[1759170380144,0.67,209.77,209.7,16.69051024]
[1759170380331,0.67,209.76,209.7,16.69051024]
[1759170380527,0.67,209.75,209.7,16.69051024]
[1759170380751,0.67,209.74,209.7,16.69051024]
[1759170381126,165.2,209.78,209.7,16.69051024]
[1759170381127,0.67,209.73,209.7,16.69051024]
[1759170381318,0.71,209.75,209.7,16.69051024]
[1759170381518,0.71,209.74,209.7,16.69051024]
[1759170381948,0.71,209.77,209.7,16.69051024]
[1759170382143,0.71,209.77,209.7,16.79051024]
[1759170382327,0.71,209.76,209.7,16.79051024]
[1759170382532,0.71,209.76,209.7,16.69051024]
[1759170383529,0.71,209.75,209.7,16.69051024]
[1759170383730,0.71,209.74,209.7,16.69051024]
[1759170383931,131.6,209.78,209.7,16.69051024]
[1759170384165,0.71,209.77,209.7,16.69051024]
[1759170384454,0.71,209.76,209.7,16.69051024]
[1759170385862,0.71,209.75,209.7,11.92179303]
[1759170386070,131.6,209.78,209.7,11.92179303]
[1759170386370,0.71,209.75,209.7,11.92179303]
[1759170387163,0.71,209.75,209.7,12.02179303]
[1759170388155,131.6,209.78,209.7,16.69051024]
[1759170388156,132.31,209.78,209.7,16.69051024]
[1759170388367,0.71,209.77,209.7,16.69051024]
[1759170388533,0.71,209.77,209.7,16.79051024]
[1759170388862,0.71,209.76,209.7,16.79051024]
[1759170389042,0.71,209.76,209.7,16.69051024]
[1759170389242,131.6,209.78,209.7,16.69051024]
[1759170389461,0.71,209.75,209.7,16.69051024]
[1759170389764,0.71,209.75,209.7,52.43029328]
[1759170390334,0.71,209.77,209.71,0.1]
[1759170390553,0.71,209.77,209.71,13.73775558]
[1759170390755,131.6,209.78,209.73,2.03978304]
[1759170390948,132.31,209.78,209.73,2.03978304]
[1759170391155,131.6,209.78,209.73,2.03978304]
[1759170391359,132.31,209.78,209.73,2.03978304]
[1759170391544,132.31,209.78,209.73,2.13978304]
[1759170391751,131.6,209.78,209.74,33.6]
[1759170392267,0.71,209.77,209.75,16.68653158]
[1759170392466,0.71,209.76,209.75,16.68653158]
[1759170392664,131.6,209.78,209.75,16.68653158]
[1759170393568,132.31,209.78,209.75,16.68653158]
[1759170393867,0.71,209.81,209.75,18.72631462]
[1759170394198,0.71,209.82,209.76,0.1]
[1759170394347,0.71,209.82,209.77,16.68494063]
[1759170394662,165.18,209.86,209.77,16.78494063]
[1759170394870,0.71,209.85,209.77,16.68494063]
[1759170395042,0.71,209.84,209.77,16.68494063]
[1759170395247,0.71,209.83,209.77,16.68494063]
[1759170395753,165.18,209.86,209.78,33.58]
[1759170395754,0.71,209.84,209.78,33.58]
[1759170396355,0.71,209.84,209.79,16.68335001]
[1759170396871,165.18,209.86,209.79,16.78335001]
[1759170396872,132.31,209.86,209.79,16.78335001]
[1759170397572,0.71,209.85,209.79,16.78335001]
[1759170398856,0.71,209.85,209.79,18.82313305]
[1759170399166,131.6,209.86,209.8,13.59559401]
[1759170399370,131.6,209.86,209.8,13.69559401]
[1759170399673,132.31,209.86,209.81,2.03978304]
[1759170399855,0.71,209.85,209.81,2.03978304]
[1759170400864,0.71,209.85,209.82,50.26096463]
[1759170401067,131.6,209.86,209.82,50.26096463]
[1759170401245,131.6,209.86,209.84,2.03978304]
[1759170402167,0.71,209.92,209.85,39.83775558]
[1759170402465,0.71,209.91,209.86,33.58]
[1759170402665,0.71,209.9,209.87,4.76485443]
[1759170404742,0.71,209.9,209.87,38.34485443]
[1759170404939,0.71,209.89,209.85,33.58]
[1759170405158,0.71,209.88,209.83,19.09819854]
[1759170405345,0.71,209.87,209.83,19.09819854]
[1759170405552,0.71,209.86,209.83,4.76573312]
[1759170405872,0.71,209.85,209.83,4.76573312]
[1759170406072,0.71,209.84,209.83,4.76573312]
[1759170406274,0.71,209.84,209.82,4.76598989]
[1759170407770,0.71,209.87,209.82,4.76598989]
[1759170408083,4.76432726,209.9,209.82,18.97941682]
[1759170408288,0.71,209.86,209.82,4.76598989]
[1759170409067,0.71,209.88,209.82,16.68096463]
[1759170411773,0.66,209.87,209.82,16.68096463]
[1759170411979,0.66,209.86,209.82,16.68096463]
[1759170412582,0.66,209.86,209.82,30.69101523]
[1759170412761,0.66,209.86,209.82,64.25101523]
[1759170412957,0.66,209.86,209.82,30.69101523]
[1759170413187,0.66,209.86,209.82,64.25101523]
[1759170413359,0.66,209.85,209.82,64.25101523]
[1759170414263,0.66,209.84,209.82,18.77604049]
[1759170414465,0.66,209.84,209.82,52.33604049]
[1759170416772,0.66,209.86,209.82,52.33604049]
[1759170416972,0.66,209.85,209.82,52.33604049]
[1759170418077,0.66,209.87,209.82,52.33604049]
[1759170418379,0.66,209.86,209.82,64.25101523]
[1759170418563,132.26,209.89,209.82,64.35101523]
[1759170418763,0.66,209.88,209.82,64.35101523]
[1759170419370,0.66,209.88,209.82,64.25101523]
[1759170420156,0.66,209.87,209.82,64.25101523]
[1759170420766,136.36445731,209.89,209.82,64.25101523]
[1759170420967,0.66,209.87,209.82,64.25101523]
[1759170421167,131.6,209.89,209.82,64.25101523]
[1759170421388,0.66,209.88,209.82,64.25101523]
[1759170421590,131.6,209.89,209.82,64.25101523]
[1759170421889,0.66,209.88,209.82,52.33604049]
[1759170422061,136.36441379,209.89,209.82,52.33604049]
[1759170422062,0.66,209.87,209.82,52.33604049]
[1759170422262,0.66,209.86,209.82,52.33604049]
[1759170422863,0.66,209.88,209.82,52.33604049]
[1759170423171,0.66,209.88,209.82,64.25101523]
[1759170423878,0.66,209.87,209.82,64.25101523]
[1759170424082,0.66,209.86,209.82,52.33604049]
[1759170424264,0.66,209.85,209.82,52.33604049]
[1759170424585,0.66,209.84,209.82,52.33604049]
[1759170424785,4.76489502,209.87,209.77,11.91780343]
[1759170424786,0.66,209.83,209.77,11.91780343]
[1759170424990,4.76489502,209.87,209.75,2.13978304]
[1759170424991,0.66,209.82,209.76,4.76735316]
[1759170425179,0.66,209.81,209.77,33.56]
[1759170425385,0.66,209.8,209.77,33.56]
[1759170425881,0.66,209.82,209.78,4.76689865]
[1759170426082,0.66,209.81,209.78,4.76689865]
[1759170426288,0.66,209.85,209.78,16.78414528]
[1759170427098,0.66,209.84,209.78,16.68414528]
[1759170428286,165.82,209.86,209.78,16.78414528]
[1759170428696,0.66,209.85,209.78,16.78414528]
[1759170430200,0.66,209.85,209.78,31.40568007]
[1759170430504,131.6,209.86,209.81,2.03978304]
[1759170430793,131.6,209.86,209.82,0.1]
[1759170430988,131.6,209.86,209.84,2.03978304]
[1759170432499,131.6,209.86,209.85,4.76530855]
[1759170433609,17.6018828,209.96,209.85,4.76530855]
[1759170433610,0.66,209.94,209.86,13.59559401]
[1759170433812,0.66,209.96,209.87,33.66]
[1759170434105,3.20963851,209.97,209.87,33.66]
[1759170434106,0.66,209.93,209.88,33.56]
[1759170434396,0.69,209.92,209.89,4.7644004]
[1759170434571,0.69,209.91,209.89,4.7644004]
[1759170434974,0.69,209.93,209.89,4.7644004]
[1759170435177,0.69,209.92,209.89,4.7644004]
[1759170436793,33.56,209.96,209.89,4.7644004]
[1759170436992,0.69,209.95,209.89,4.7644004]
[1759170437208,0.69,209.94,209.89,4.7644004]
[1759170437512,0.69,209.94,209.89,16.6754014]
[1759170438005,33.56,209.96,209.89,16.6754014]
[1759170438006,0.69,209.93,209.89,16.6754014]
[1759170438312,0.69,209.94,209.89,16.6754014]
[1759170440014,0.69,209.93,209.89,16.6754014]
[1759170440383,165.16,209.96,209.89,16.6754014]
[1759170440696,0.69,209.95,209.89,16.6754014]
[1759170442327,131.6,209.96,209.89,18.81518444]
[1759170442620,132.28,209.96,209.89,18.81518444]
[1759170442913,131.6,209.96,209.9,13.69559401]
[1759170443118,0.2,209.98,209.91,2.13978304]
[1759170443326,0.2,209.98,209.92,33.54]
[1759170443525,0.2,209.98,209.92,33.64]
[1759170443729,0.2,209.98,209.93,16.67222407]
[1759170444113,0.2,209.98,209.93,16.77222407]
[1759170444310,0.2,209.98,209.93,20.27036586]
[1759170444625,0.88,209.98,209.93,20.27036586]
[1759170444801,0.2,209.98,209.93,20.27036586]
[1759170445520,0.88,209.98,209.93,20.17036586]
[1759170446298,0.2,209.98,209.94,0.1]
[1759170446606,0.2,209.98,209.95,4.76303881]
[1759170447297,0.88,209.98,209.95,4.76303881]
[1759170448920,0.88,209.98,209.94,16.67142992]
[1759170449122,0.2,209.98,209.94,16.67142992]
[1759170449332,0.2,209.98,209.94,16.77142992]
[1759170449510,0.2,209.98,209.95,3.59814179]
[1759170449715,0.88,209.98,209.96,33.54]
[1759170450226,0.2,209.98,209.96,33.54]
[1759170450932,0.2,209.98,209.97,4.76258513]
[1759170454136,0.2,209.98,209.96,4.76281196]
[1759170456425,0.2,209.98,209.95,4.76303881]
[1759170456729,0.2,209.98,209.95,38.28303881]
[1759170456932,0.2,209.98,209.96,13.69559401]
[1759170457119,1e-08,209.98,209.97,17.23589737]
[1759170457324,1e-08,209.99,209.98,13.73775558]
[1759170457508,1e-08,209.99,209.98,47.25775558]
[1759170457836,0.2,210.02,209.98,47.35775558]
[1759170458008,0.2,210.02,210.01,17.0937358]
[1759170458210,0.2,210.02,210.01,50.75589737]
[1759170458542,1e-08,210.05,210.02,30.26067352]
[1759170458747,1e-08,210.05,210.02,30.36067352]
[1759170459042,1e-08,210.05,210.03,1.90935345]
[1759170459252,1e-08,210.05,210.04,37.01814179]
[1759170460129,1e-08,210.05,210.04,8.25913969]
[1759170460313,0.68000001,210.05,210.04,38.2809979]
[1759170461033,1e-08,210.05,210.04,38.2809979]
[1759170464535,1e-08,210.05,210.04,38.3809979]
[1759170465040,1e-08,210.05,210.04,38.2809979]
[1759170465239,1e-08,210.05,210.04,4.7609979]
[1759170465420,1e-08,210.05,210.04,38.2809979]
[1759170467323,1e-08,210.05,210.04,4.7609979]
[1759170467525,1e-08,210.05,210.04,38.2809979]
[1759170468042,1e-08,210.05,210.04,4.7609979]
[1759170468244,1e-08,210.05,210.04,38.2609979]
[1759170473848,0.72000001,210.05,210.04,38.2609979]
[1759170474144,0.72000001,210.05,210.04,40.17026021]
[1759170475338,0.72000001,210.05,210.04,38.2609979]
[1759170478343,1e-08,210.05,210.04,38.2609979]
[1759170479154,0.72000001,210.05,210.04,38.2609979]
[1759170479833,0.72000001,210.05,210.04,4.7609979]
[1759170480057,0.72000001,210.05,210.04,33.5]
[1759170481051,1e-08,210.05,210.04,33.5]
[1759170481447,0.72000001,210.05,210.04,33.5]
[1759170482153,1e-08,210.05,210.04,38.2609979]
[1759170482356,1e-08,210.05,210.04,4.7609979]
[1759170482530,1e-08,210.05,210.04,64.2609979]
[1759170482737,1e-08,210.05,210.04,66.17035135]
[1759170483948,1e-08,210.05,210.04,40.17035135]
[1759170485863,1e-08,210.05,210.04,54.00810693]
[1759170486154,1e-08,210.05,210.04,53.90810693]
[1759170486354,1e-08,210.05,210.04,54.00810693]
[1759170486583,0.2,210.09,210.05,0.14216157]
[1759170486740,0.2,210.15,210.05,0.14216157]
[1759170486741,1e-08,210.14,210.12,3.49814179]
[1759170487059,1e-08,210.15,210.14,13.73775558]
[1759170487835,0.72000001,210.15,210.14,73.23775558]
[1759170488030,1e-08,210.15,210.14,73.23775558]
[1759170488334,1e-08,210.15,210.14,76.73589737]
[1759170488535,1e-08,210.15,210.14,81.49462964]
[1759170489552,0.72000001,210.15,210.14,64.23873227]
[1759170489760,0.72000001,210.15,210.14,38.23873227]
[1759170491142,1e-08,210.15,210.14,38.23873227]
[1759170492262,1e-08,210.15,210.14,41.73687406]
[1759170492940,1e-08,210.15,210.14,55.57462964]
[1759170493340,1e-08,210.15,210.14,55.47462964]
[1759170493960,1e-08,210.15,210.14,57.48289002]
[1759170494340,1e-08,210.15,210.14,57.38289002]
[1759170494851,1e-08,210.15,210.14,57.48289002]
[1759170495861,0.2,210.19,210.17,26.0]
[1759170496051,0.2,210.19,210.18,50.71589737]
[1759170496663,0.2,210.19,210.18,65.02511967]
[1759170497750,0.2,210.19,210.18,69.78294629]
[1759170498544,1e-08,210.19,210.18,69.78294629]
[1759170500947,1e-08,210.19,210.18,69.88294629]
[1759170501249,0.71,210.25,210.22,13.73775558]
[1759170501461,0.2,210.27,210.22,13.73775558]
[1759170501462,0.67,210.24,210.23,33.48]
[1759170501959,0.2,210.27,210.23,35.38753237]
[1759170502171,0.67,210.26,210.23,35.38753237]
[1759170502341,0.67,210.25,210.23,35.38753237]
[1759170502665,0.67,210.24,210.23,35.38753237]
[1759170502860,0.67,210.24,210.23,38.23669504]
[1759170504354,0.67,210.24,210.18,11.89414328]
[1759170504662,0.67,210.23,210.19,38.21760026]
[1759170504851,0.67,210.22,210.19,38.21760026]